{"text_format":"1","workbook":"xlsx","n_sheets":10,"sheets":["Титульный","Инструкция","Прил. № 1","Прил. № 2.1 (год-3)","Прил. № 2.2 (год-2)","Прил. № 2.3 (год-1)","Прил. № 3.1 ('а' п.16)","Прил. № 3.2 ('в' п.16)","Проверка","Справочник"],"not_rendered":{"charts":0,"images":0,"macros":1,"external_links":0,"defined_names":41,"comments":0,"pivot_tables":0},"unopened":[],"bounds":{"document_bytes":16777216,"sheet_cells":100000,"rows_first":2000,"rows_last":500,"rows_between":2000,"halvings":0,"cell_chars":16384,"cell_head_chars":4096},"cells_cut":0,"cells_raw":0,"read":"whole","date_system":"1900"}

{"sheet":"Титульный","index":0,"n_rows":23,"n_cols":3,"rows_kept":23,"cut":false,"hidden":false,"merged":[[3,1,3,2]]}
["SHABLON.TSO.2023"]
["Версия 1.0.6"]
[]
[null,"Информация о плате за техприсоединение к электросетям"]
[]
[null,"Наименование организации","ПАО \"Корпорация ВСМПО - АВИСМА\""]
[null,"ИНН",6607000556]
[null,"КПП",997550001]
[null,"Наименование (описание) обособленного подразделения"]
[null,"Организационно-правовая форма","Публичное акционерное общество"]
[null,"Вид деятельности","Производство прочих цветных\nметаллов\n"]
[null,"Период",2022]
[null,null,"Адрес регулируемой организации"]
[null,"Юридический адрес","624760, Россия, г. Верхняя Салда, Свердловская обл., ул. Парковая,1,               ПАО «Корпорация ВСМПО-АВИСМА»"]
[null,"Почтовый адрес","624760, Россия, г. Верхняя Салда, Свердловская обл., ул. Парковая,1,               ПАО «Корпорация ВСМПО-АВИСМА»"]
[null,null,"Руководитель"]
[null,"Фамилия, имя, отчество","Д.В. Осипов"]
[null,"Телефон","(34345) 6-12-99"]
[null,null,"Ответственный за предоставление информации (от регулируемой организации)"]
[null,"Фамилия, имя, отчество","Колобов Д.А."]
[null,"Должность","Заместитель главного энергетика по электрочасти"]
[null,"Контактный телефон","(34345) 6-31-74"]
[null,"e-mail","kolobov_da@vsmpo.ru"]

{"sheet":"Инструкция","index":1,"n_rows":34,"n_cols":2,"rows_kept":34,"cut":false,"hidden":false,"merged":[[1,1,1,14],[2,1,2,14],[3,1,3,14],[4,1,4,14],[5,1,5,14],[6,1,6,14],[7,1,7,14],[8,1,8,14],[9,1,9,14],[10,1,10,14],[11,1,11,14],[12,1,12,14],[13,1,13,14],[14,1,14,14],[16,1,16,14],[18,1,18,14],[15,1,15,14],[19,1,19,14],[20,1,20,14],[21,1,21,14],[22,1,22,14],[23,1,23,14],[24,1,24,14],[31,1,31,14],[32,1,32,14],[33,1,33,14],[25,1,25,14],[26,1,26,14],[28,1,28,14],[29,1,29,14],[30,1,30,14]]}
[]
[null,"Инструкция\nпо заполнению приложений, направленных письмом Региональной энергетической комиссии Свердловской области (далее  –  РЭК Свердловской области), разработанных в соответствии с методическими указаниями  по определению размера платы за технологическое присоединение к электрическим сетям, утвержденными  приказом ФАС России от 30.06.2022 № 490/22"]
[null,"1.  Ячейки голубого цвета подлежат обязательному заполнению территориальной сетевой организацией (далее – ТСО), ячейки желтого цвета предназначены для заполнения ТСО, ячейки зеленого цвета не подлежат заполнению."]
[null,{"$f":"\"2. Показатели в приложении 1 заполняются в отношении построенных и введенных в эксплуатацию объектов электросетевого хозяйства \"&\"ТСО за периоды \"&IF(Титульный!C12=\"\",\"--- выберите период на листе Титульный.\",(Титульный!C12-3)&\", \"&(Титульный!C12-2)&\", \"&(Титульный!C12-1)&\" годы.\")","v":"2. Показатели в приложении 1 заполняются в отношении построенных и введенных в эксплуатацию объектов электросетевого хозяйства ТСО за периоды 2019, 2020, 2021 годы."}]
[null,{"$f":"\"3. Показатели в приложении 1 заполняются для территорий городских населенных пунктов и для территорий, \" & \"не относящихся к городским населенным пунктам без разделения по типу.\"","v":"3. Показатели в приложении 1 заполняются для территорий городских населенных пунктов и для территорий, не относящихся к городским населенным пунктам без разделения по типу."}]
[null,"4. Показатели в приложениях 2.1, 2.2, 2.3, 3.1, 3.2 заполняются за 2019, 2020, 2021 годы."]
[]
[null,"I. Заполнение приложения 1."]
[null,"1) Приложение 1 заполняется для территорий городских населенных пунктов и для территорий, не относящихся к городским населенным пунктам без разделения по типу."]
[null,"2) В графе 2 указываются характеристики объекта электросетевого хозяйства/средства коммерческого учета электрической энергии (мощности), введенного в эксплуатацию (наименование мероприятия, выполненного ТСО в соответствии с выданными техническими условиями)."]
[]
[null,"3) В графах 3, 6, 9 указывается протяженность воздушной или кабельной линий электропередачи (далее – ЛЭП) в километрах по трассе (без учета количества кабелей (проводов) в линии), а также количество пунктов секционирования и точек учета электрической энергии (мощности) в штуках."]
[null,"4) В графах 4, 7, 10 указывается размер максимальной мощности энергопринимающего устройства заявителя с учетом третьей категории надежности."]
[null,"5) В графах 5, 8, 11 указываются расходы на строительство введенных в эксплуатацию объектов электросетевого хозяйства ТСО, а также на обеспечение средствами коммерческого учета электрической энергии (мощности), в соответствии с учетной политикой ТСО (например: стоимость принимаемых основных фондов согласно формам КС-14, КС-11)."]
[null,"6) В графах 5, 8, 11, 14 указывается размерность показателей с учётом обязательного заполнения трех знаков после запятой."]
[null,"7) Графы 12-14 заполняются ТСО только в случае, если за 3 предыдущих года ТСО не осуществлялось строительство  объектов электросетевого хозяйства, а также обеспечение средствами коммерческого учета электрической энергии (мощности), в отношении которых устанавливаются стандартизированные тарифные ставки, по планируемым расходам, определенным по сметам, выполненным с применением сметных нормативов."]
[null,{"$f":"\"8) За периоды \" &IF(Титульный!C12=\"\",\"--- выберите период на листе Титульный --- \",(Титульный!C12-3)&\", \"&(Титульный!C12-2)&\", \"&(Титульный!C12-1)&\" годы \") & \"всем ТСО необходимо представить в РЭК Свердловской области документы, подтверждающие расходы на выполнение мероприятий по строительству объектов электросетевого хозяйства ТСО, а также на обеспечение средствами  коммерческого учета электрической энергии.\"","v":"8) За периоды 2019, 2020, 2021 годы всем ТСО необходимо представить в РЭК Свердловской области документы, подтверждающие расходы на выполнение мероприятий по строительству объектов электросетевого хозяйства ТСО, а также на обеспечение средствами  коммерческого учета электрической энергии."}]
[]
[null,"II.     Заполнение приложений 2.1, 2.2, 2.3."]
[null,{"$f":"\"1)           Приложение 2.1 заполняется за \" &IF(Титульный!C12=\"\",\"--- выберите период на листе Титульный.\",(Титульный!C12-3)&\" год.\")","v":"1)           Приложение 2.1 заполняется за 2019 год."}]
[null,{"$f":"\"2)           Приложение 2.2 заполняется за \" &IF(Титульный!C12=\"\",\"--- выберите период на листе Титульный.\",(Титульный!C12-2)&\" год.\")","v":"2)           Приложение 2.2 заполняется за 2020 год."}]
[null,{"$f":"\"3)           Приложение 2.3 заполняется за \" &IF(Титульный!C12=\"\",\"--- выберите период на листе Титульный.\",(Титульный!C12-1)&\" год.\")","v":"3)           Приложение 2.3 заполняется за 2021 год."}]
[null,"4)                     В графе 3 пункта 1 указываются расходы ТСО на выполнение мероприятий по подготовке и выдаче технических условий заявителю в тыс. рублей."]
[null,"5)           В графе 3 пунктов 2.1, 2.2 указываются расходы ТСО на выполнение мероприятий по проверке сетевой организацией выполнения заявителем технических условий в тыс. рублей."]
[null,"6)                     В графе 4 указывается количество технологических присоединений, в штуках."]
[null,"7)                     В графе 5 указывается объем максимальной мощности, в кВт."]
[null,{"$f":"\"8)           За периоды \" &IF(Титульный!C12=\"\",\"--- выберите период на листе Титульный --- \",(Титульный!C12-3)&\", \"&(Титульный!C12-2)&\", \"&(Титульный!C12-1)&\" годы \") & \"всем ТСО необходимо представить в РЭК Свердловской области документы, подтверждающие расходы, количество техприсоединений, объем максимальной мощности.\"","v":"8)           За периоды 2019, 2020, 2021 годы всем ТСО необходимо представить в РЭК Свердловской области документы, подтверждающие расходы, количество техприсоединений, объем максимальной мощности."}]
[]
[null,"III.     Заполнение приложений 3.1, 3.2."]
[null,"1)                     Приложение 3.1 заполняется ТСО по мероприятию: подготовка и выдача сетевой организацией технических условий заявителю."]
[null,"2)                     Приложение 3.2 заполняется ТСО по мероприятию: проверка сетевой организацией выполнения заявителем технических условий."]
[null,"3)                     В графах 3-5 указываются расходы на выполнение мероприятий по технологическому присоединению с разбивкой по каждому показателю в тыс. рублей в соответствии с учетной политикой ТСО и бухгалтерской отчетностью."]
[null,"4)                     В графах 3-5 указывается размерность показателей с учётом обязательного заполнения трех знаков после запятой."]
[null,{"$f":"\"5)          За периоды \" &IF(Титульный!C12=\"\",\"--- выберите период на листе Титульный --- \",(Титульный!C12-3)&\", \"&(Титульный!C12-2)&\", \"&(Титульный!C12-1)&\" годы \") & \"всем ТСО необходимо представить в РЭК Свердловской области документы, подтверждающие расходы по технологическому присоединению.\"","v":"5)          За периоды 2019, 2020, 2021 годы всем ТСО необходимо представить в РЭК Свердловской области документы, подтверждающие расходы по технологическому присоединению."}]

{"sheet":"Прил. № 1","index":2,"n_rows":71,"n_cols":29,"rows_kept":71,"cut":false,"hidden":false,"merged":[[14,7,14,12],[22,7,22,12],[29,7,29,12],[64,6,64,28],[36,7,36,12],[43,7,43,12],[50,7,50,12],[57,7,57,12],[15,7,15,12],[10,6,10,28],[11,6,11,28],[12,6,13,6],[12,13,12,16],[12,17,12,20],[12,21,12,24],[12,25,12,28],[12,7,13,12]]}
[]
[]
[]
[]
[]
[]
[]
[]
[]
[null,null,null,null,null,null,null," "]
[null,null,null,null,null,null,"Приложение № 1"]
["dd_hide/show","hide","range_name","address_title","address_svod",null,"\nРасходы на строительство введенных в эксплуатацию объектов электросетевого хозяйства для целей технологического присоединения и для целей реализации иных мероприятий инвестиционной программы территориальной сетевой организации, а также на обеспечение средствами\nкоммерческого учета электрической энергии (мощности)"]
[null,null,null,null,null,null,"№ п/п","Объект электросетевого хозяйства/Средство коммерческого учета электрической энергии (мощности)",null,null,null,null,null,"Год ввода объекта 2019",null,null,null,"Год ввода объекта 2020",null,null,null,"Год ввода объекта 2021",null,null,null,"План*"]
[null,null,null,null,null,null,null,null,null,null,null,null,null,"уровень напряжения, кВ","протяженность\n(для линий электропередачи), км. / количество\n(для пунктов секционирования, точек учета ээ), шт.","максимальная мощность, кВт","расходы на строительство объекта/на обеспечение средствами коммерческого учета электрической энергии (мощности), тыс. руб.","уровень напряжения, кВ","протяженность\n(для линий электропередачи), км. / количество\n(для пунктов секционирования, точек учета ээ), шт.","максимальная мощность, кВт","расходы на строительство объекта/на обеспечение средствами коммерческого учета электрической энергии (мощности), тыс. руб.","уровень напряжения, кВ","протяженность\n(для линий электропередачи), км. / количество\n(для пунктов секционирования, точек учета ээ), шт.","максимальная мощность, кВт","расходы на строительство объекта/на обеспечение средствами коммерческого учета электрической энергии (мощности), тыс. руб.","уровень напряжения, кВ","протяженность\n(для линий электропередачи), км. / количество\n(для пунктов секционирования, точек учета ээ), шт.","максимальная мощность, кВт","расходы на строительство объекта/на обеспечение средствами коммерческого учета электрической энергии (мощности), тыс. руб."]
["ddShPr11City_rstart",null,null,null,null,null,1,2,null,null,null,null,null,3,3,4,5,7,6,7,8,11,9,10,11,15,12,13,14]
[null,null,null,null,null,null,"1.","СТРОИТЕЛЬСТВО ВОЗДУШНЫХ ЛИНИЙ ЭЛЕКТРОПЕРЕДАЧИ",null,null,null,null,null,null,{"$f":"SUM(O18:O20)","v":0},{"$f":"SUM(P18:P20)","v":0},{"$f":"SUM(Q18:Q20)","v":0},null,{"$f":"SUM(S18:S20)","v":0},{"$f":"SUM(T18:T20)","v":0},{"$f":"SUM(U18:U20)","v":0},null,{"$f":"SUM(W18:W20)","v":0},{"$f":"SUM(X18:X20)","v":0},{"$f":"SUM(Y18:Y20)","v":0},null,{"$f":"SUM(AA18:AA20)","v":0},{"$f":"SUM(AB18:AB20)","v":0},{"$f":"SUM(AC18:AC20)","v":0}]
[null,null,null,null,null,null,null,"тип опор: ","тип провода:","материал провода:","сечение провода:","количество цепей:","уровень напряжения:"]
[null,1]
[null,1,"VL",{"$f":"ROW($D$17)","v":17},null,"Удалить",{"$f":"$G$16 & (ROWS($G$18:G19)-2)+1&\".\"","v":"1.1."}]
[null,1,null,null,null,null,null,null,null,null,null,null,null," "]
[null,null,null,null,null,null,null,"Добавить"]
[null,1]
[null,null,null,null,null,null,"2.","СТРОИТЕЛЬСТВО КАБЕЛЬНЫХ ЛИНИЙ ЭЛЕКТРОПЕРЕДАЧИ",null,null,null,null,null,null,{"$f":"SUM(O25:O27)","v":0},{"$f":"SUM(P25:P27)","v":0},{"$f":"SUM(Q25:Q27)","v":0},null,{"$f":"SUM(S25:S27)","v":0},{"$f":"SUM(T25:T27)","v":0},{"$f":"SUM(U25:U27)","v":0},null,{"$f":"SUM(W25:W27)","v":0},{"$f":"SUM(X25:X27)","v":0},{"$f":"SUM(Y25:Y27)","v":0},null,{"$f":"SUM(AA25:AA27)","v":0},{"$f":"SUM(AB25:AB27)","v":0},{"$f":"SUM(AC25:AC27)","v":0}]
[null,null,null,null,null,null,null,"способ прокладки: ","количество жил:","тип изоляции:","сечение провода:","количество кабелей в траншее, канале, туннеле или\n коллекторе, на галерее или эстакаде, труб в скважине:","уровень напряжения:"]
[null,1]
[null,1,"KL",{"$f":"ROW($D$24)","v":24},null,"Удалить",{"$f":"$G$23 & (ROWS($G$25:G26)-2)+1&\".\"","v":"2.1."}]
[null,1]
[null,null,null,null,null,null,null,"Добавить"]
[null,1]
[null,null,null,null,null,null,"3.","СТРОИТЕЛЬСТВО ПУНКТОВ СЕКЦИОНИРОВАНИЯ",null,null,null,null,null,null,{"$f":"SUM(O32:O34)","v":0},{"$f":"SUM(P32:P34)","v":0},{"$f":"SUM(Q32:Q34)","v":0},null,{"$f":"SUM(S32:S34)","v":0},{"$f":"SUM(T32:T34)","v":0},{"$f":"SUM(U32:U34)","v":0},null,{"$f":"SUM(W32:W34)","v":0},{"$f":"SUM(X32:X34)","v":0},{"$f":"SUM(Y32:Y34)","v":0},null,{"$f":"SUM(AA32:AA34)","v":0},{"$f":"SUM(AB32:AB34)","v":0},{"$f":"SUM(AC32:AC34)","v":0}]
[null,null,null,null,null,null,null,"пункт секционирования: ","номинальный ток:","количество ячеек в распределительном или переключательном пункте:","уровень напряжения:"]
[null,1]
[null,1,"PS",{"$f":"ROW($D$31)","v":31},null,"Удалить",{"$f":"$G$30 & (ROWS($G$32:G33)-2)+1&\".\"","v":"3.1."}]
[null,1]
[null,null,null,null,null,null,null,"Добавить"]
[null,1]
[null,null,null,null,null,null,"4.","СТРОИТЕЛЬСТВО КОМПЛЕКТНЫХ ТРАНСФОРМАТОРНЫХ ПОДСТАНЦИЙ (КТП) С УРОВНЕМ НАПРЯЖЕНИЯ ДО 35 КВ",null,null,null,null,null,null,{"$f":"SUM(O39:O41)","v":0},{"$f":"SUM(P39:P41)","v":0},{"$f":"SUM(Q39:Q41)","v":0},null,{"$f":"SUM(S39:S41)","v":0},{"$f":"SUM(T39:T41)","v":0},{"$f":"SUM(U39:U41)","v":0},null,{"$f":"SUM(W39:W41)","v":0},{"$f":"SUM(X39:X41)","v":0},{"$f":"SUM(Y39:Y41)","v":0},null,{"$f":"SUM(AA39:AA41)","v":0},{"$f":"SUM(AB39:AB41)","v":0},{"$f":"SUM(AC39:AC41)","v":0}]
[null,null,null,null,null,null,null,"уровень напряжения: ","количество трансформаторов:","трансформаторная мощность:","тип трансформаторной подстанции:"]
[null,1]
[null,1,"TS",{"$f":"ROW($D$38)","v":38},null,"Удалить",{"$f":"$G$37 & (ROWS($G$39:G40)-2)+1&\".\"","v":"4.1."}]
[null,1]
[null,null,null,null,null,null,null,"Добавить"]
[null,1]
[null,null,null,null,null,null,"5.","СТРОИТЕЛЬСТВО РАСПРЕДЕЛИТЕЛЬНЫХ ТРАНСФОРМАТОРНЫХ ПОДСТАНЦИЙ (РТП) С УРОВНЕМ НАПРЯЖЕНИЯ ДО 35 КВ",null,null,null,null,null,null,{"$f":"SUM(O46:O48)","v":0},{"$f":"SUM(P46:P48)","v":0},{"$f":"SUM(Q46:Q48)","v":0},null,{"$f":"SUM(S46:S48)","v":0},{"$f":"SUM(T46:T48)","v":0},{"$f":"SUM(U46:U48)","v":0},null,{"$f":"SUM(W46:W48)","v":0},{"$f":"SUM(X46:X48)","v":0},{"$f":"SUM(Y46:Y48)","v":0},null,{"$f":"SUM(AA46:AA48)","v":0},{"$f":"SUM(AB46:AB48)","v":0},{"$f":"SUM(AC46:AC48)","v":0}]
[null,null,null,null,null,null,null,"количество трансформаторов:","трансформаторная мощность:","уровень напряжения: ","тип распределительной трансформаторной подстанции:"]
[null,1]
[null,1,"RTP",{"$f":"ROW($D$45)","v":45},null,"Удалить",{"$f":"$G$44 & (ROWS($G$46:G47)-2)+1&\".\"","v":"5.1."}]
[null,1]
[null,null,null,null,null,null,null,"Добавить"]
[null,1]
[null,null,null,null,null,null,"6.","СТРОИТЕЛЬСТВО ЦЕНТРОВ ПИТАНИЯ, ПОДСТАНЦИЙ УРОВНЕМ НАПРЯЖЕНИЯ 35 КВ И ВЫШЕ (ПС)",null,null,null,null,null,null,{"$f":"SUM(O53:O55)","v":0},{"$f":"SUM(P53:P55)","v":0},{"$f":"SUM(Q53:Q55)","v":0},null,{"$f":"SUM(S53:S55)","v":0},{"$f":"SUM(T53:T55)","v":0},{"$f":"SUM(U53:U55)","v":0},null,{"$f":"SUM(W53:W55)","v":0},{"$f":"SUM(X53:X55)","v":0},{"$f":"SUM(Y53:Y55)","v":0},null,{"$f":"SUM(AA53:AA55)","v":0},{"$f":"SUM(AB53:AB55)","v":0},{"$f":"SUM(AC53:AC55)","v":0}]
[null,null,null,null,null,null,null,"количество трансформаторов:","трансформаторная мощность:","уровень напряжения: ","тип центра питания, подстанции:"]
[null,1]
[null,1,"SP",{"$f":"ROW($D$52)","v":52},null,"Удалить",{"$f":"$G$51 & (ROWS($G$53:G54)-2)+1&\".\"","v":"6.1."}]
[null,1]
[null,null,null,null,null,null,null,"Добавить"]
[null,1,null,null,null,null,null,null,null," "]
[null,null,null,null,null,null,"7.","ОБЕСПЕЧЕНИЕ СРЕДСТВАМИ КОММЕРЧЕСКОГО УЧЕТА ЭЛЕКТРИЧЕСКОЙ ЭНЕРГИИ (МОЩНОСТИ)",null,null,null,null,null,null,{"$f":"SUM(O60:O62)","v":0},{"$f":"SUM(P60:P62)","v":0},{"$f":"SUM(Q60:Q62)","v":0},null,{"$f":"SUM(S60:S62)","v":0},{"$f":"SUM(T60:T62)","v":0},{"$f":"SUM(U60:U62)","v":0},null,{"$f":"SUM(W60:W62)","v":0},{"$f":"SUM(X60:X62)","v":0},{"$f":"SUM(Y60:Y62)","v":0},null,{"$f":"SUM(AA60:AA62)","v":0},{"$f":"SUM(AB60:AB62)","v":0},{"$f":"SUM(AC60:AC62)","v":0}]
[null,null,null,null,null,null,null,"количество фаз:","тип включения:","уровень напряжения: "]
[null,1]
[null,1,"SKU",{"$f":"ROW($D$59)","v":59},null,"Удалить",{"$f":"$G$58 & (ROWS($G$60:G61)-2)+1&\".\"","v":"7.1."}]
[null,1]
[null,null,null,null,null,null,null,"Добавить"]
[null,1]
[null,null,null,null,null,null," * - случае если в субъекте Российской Федерации за 3 предыдущих года не осуществлялось строительство тех объектов электросетевого хозяйства, в отношении которых устанавливаются стандартизированные тарифные ставки либо не осуществлялось обеспечение средствами коммерческого учета электрической энергии (мощности), расчет ставок может производиться исходя из данных за два предыдущих года, в случае отсутствия данных за два года - за предыдущий год, а при отсутствии данных за три года - по планируемым расходам, определенным по сметам, выполненным с применением сметных нормативов.\n"]
["ddShPr11City_rstop",null,null,null,null,null,null,null,null,null,null," "]
[]
[]
[]
[]
[null,null,null,null,null,null,null,null," "]

{"sheet":"Прил. № 2.1 (год-3)","index":3,"n_rows":13,"n_cols":10,"rows_kept":13,"cut":false,"hidden":false,"merged":[[0,0,0,9],[2,0,6,0],[2,1,6,1],[5,6,5,7],[5,8,5,9],[3,6,4,9],[4,5,6,5],[4,2,6,2],[4,3,6,3],[4,4,6,4],[1,0,1,5],[2,2,2,5],[3,2,3,5]]}
["Приложение № 2.1\n"]
[{"$f":"\"Расходы на выполнение мероприятий по технологическому присоединению, предусмотренных пунктами \"&CHAR(34)&\"а\"&CHAR(34)&\" и \"&CHAR(34)&\"в\"&CHAR(34)&\" пункта 16 Методических указаний\"&CHAR(10)&\" за \" &IF(Титульный!C12=\"\",\"--- выберите период на листе Титульный ---\",(Титульный!C12-3)) & \" год\"","v":"Расходы на выполнение мероприятий по технологическому присоединению, предусмотренных пунктами \"а\" и \"в\" пункта 16 Методических указаний\n за 2019 год"}]
["№ п/п","Наименование мероприятий",{"$f":"\"Год формирования расходов (согласно учетной политике сетевой организации) за \" &IF(Титульный!C12=\"\",\"--- выберите период на листе Титульный ---\",(Титульный!C12-3)) & \" год\"","v":"Год формирования расходов (согласно учетной политике сетевой организации) за 2019 год"}]
[null,null,"Информация для расчета стандартизированной тарифной ставки С1",null,null,null,"расходы на одно присоединение (руб. на 1 ТП)"]
[null,null,"расходы согласно Приложению № 3 по каждому мероприятию\n (тыс. руб.) ","количество технологических присоединений (шт.)","объем максимальной мощности (кВт)","Итого расходы на одно присоединение \n(тыс.руб. на 1 ТП)\n (гр.3/ гр.4)"]
[null,null,null,null,null,null,"до 35 кВ",null,"свыше 35 кВ включительно"]
[null,null,null,null,null,null,"до 8900 кВт","свыше 8900 кВт включительно","до 8900 кВт","свыше 8900 кВт включительно"]
[1,2,3,4,5,6,15,16,17,18]
[1,"Подготовка и выдача сетевой организацией технических условий заявителю",{"$f":"'Прил. № 3.1 (''а'' п.16)'!E5","v":32.676000000000002},4,936,{"$f":"IF(D9=0,0,C9 /D9)","v":8.1690000000000005},{"$f":"IF(D9=0,0,C9/D9)","v":8.1690000000000005},{"$f":"IF(#REF!=0,0,#REF!/#REF!)","v":{"$error":"#REF!"}},{"$f":"IF(#REF!=0,0,#REF!/#REF!)","v":{"$error":"#REF!"}},{"$f":"IF(#REF!=0,0,#REF!/#REF!)","v":{"$error":"#REF!"}}]
[2,"Проверка сетевой организацией выполнения заявителем технических условий","-","-","-","-",{"$f":"IF(D10=0,0,C10/D10)","v":{"$error":"#VALUE!"}},{"$f":"IF(#REF!=0,0,#REF!/#REF!)","v":{"$error":"#REF!"}},{"$f":"IF(#REF!=0,0,#REF!/#REF!)","v":{"$error":"#REF!"}},{"$f":"IF(#REF!=0,0,#REF!/#REF!)","v":{"$error":"#REF!"}}]
[3,"Итого",{"$f":"C9+C10","v":{"$error":"#VALUE!"}},{"$f":"D9+D10","v":{"$error":"#VALUE!"}},{"$error":"#VALUE!"},null,{"$f":"IF(D11=0,0,C11/D11)","v":{"$error":"#VALUE!"}},{"$f":"IF(#REF!=0,0,#REF!/#REF!)","v":{"$error":"#REF!"}},{"$f":"IF(#REF!=0,0,#REF!/#REF!)","v":{"$error":"#REF!"}},{"$f":"IF(#REF!=0,0,#REF!/#REF!)","v":{"$error":"#REF!"}}]
["2.1","Выдача сетевой организацией уведомления об обеспечении сетевой организацией возможности присоединения к электрическим сетям заявителям, указанным в абзаце шестом пункта 24 Методических указаний по определению размера платы за технологическое присоединение к электрическим сетям",29.827000000000002,3,36,{"$f":"IF(D12=0,0,C12 /D12)","v":9.9423333333333339},{"$f":"IF(D12=0,0,C12/D12)","v":9.9423333333333339},{"$f":"IF(#REF!=0,0,#REF!/#REF!)","v":{"$error":"#REF!"}},{"$f":"IF(#REF!=0,0,#REF!/#REF!)","v":{"$error":"#REF!"}},{"$f":"IF(#REF!=0,0,#REF!/#REF!)","v":{"$error":"#REF!"}}]
["2.2","Проверка сетевой организацией выполнения технических условий заявителями, указанными в абзаце седьмом пункта 24 Методических указаний по определению размера платы за технологическое присоединение к электрическим сетям",12.737,1,900,12.737,{"$f":"IF(D13=0,0,C13/D13)","v":12.737},{"$f":"IF(#REF!=0,0,#REF!/#REF!)","v":{"$error":"#REF!"}},{"$f":"IF(#REF!=0,0,#REF!/#REF!)","v":{"$error":"#REF!"}},{"$f":"IF(#REF!=0,0,#REF!/#REF!)","v":{"$error":"#REF!"}}]

{"sheet":"Прил. № 2.2 (год-2)","index":4,"n_rows":13,"n_cols":10,"rows_kept":13,"cut":false,"hidden":false,"merged":[[0,0,0,9],[2,0,6,0],[2,1,6,1],[5,6,5,7],[5,8,5,9],[3,6,4,9],[4,5,6,5],[1,0,1,5],[4,2,6,2],[4,3,6,3],[4,4,6,4],[3,2,3,5],[2,2,2,5]]}
["Приложение № 2.2\n"]
[{"$f":"\"Расходы на выполнение мероприятий по технологическому присоединению, предусмотренных пунктами \"&CHAR(34)&\"а\"&CHAR(34)&\" и \"&CHAR(34)&\"в\"&CHAR(34)&\" пункта 16 Методических указаний\"&CHAR(10)&\" за \" &IF(Титульный!C12=\"\",\"--- выберите период на листе Титульный ---\",(Титульный!C12-2)) & \" год\"","v":"Расходы на выполнение мероприятий по технологическому присоединению, предусмотренных пунктами \"а\" и \"в\" пункта 16 Методических указаний\n за 2020 год"}]
["№ п/п","Наименование мероприятий",{"$f":"\"Год формирования расходов (согласно учетной политике сетевой организации) за \" &IF(Титульный!C12=\"\",\"--- выберите период на листе Титульный ---\",(Титульный!C12-2)) & \" год\"","v":"Год формирования расходов (согласно учетной политике сетевой организации) за 2020 год"}]
[null,null,"Информация для расчета стандартизированной тарифной ставки С1",null,null,null,"расходы на одно присоединение (руб. на 1 ТП)"]
[null,null,"расходы согласно Приложению № 3 по каждому мероприятию (тыс. руб.) ","количество технологических присоединений (шт.)","объем максимальной мощности (кВт)","Итого расходы на одно присоединение \n(тыс.руб. на 1 ТП)\n (гр.3/ гр.4)"]
[null,null,null,null,null,null,"до 35 кВ",null,"свыше 35 кВ включительно"]
[null,null,null,null,null,null,"до 8900 кВт","свыше 8900 кВт включительно","до 8900 кВт","свыше 8900 кВт включительно"]
[1,2,3,4,5,6,15,16,17,18]
[1,"Подготовка и выдача сетевой организацией технических условий заявителю",null,null,null,{"$f":"IF(D9=0,0,C9 /D9)","v":0},{"$f":"IF(D9=0,0,C9/D9)","v":0},{"$f":"IF(#REF!=0,0,#REF!/#REF!)","v":{"$error":"#REF!"}},{"$f":"IF(#REF!=0,0,#REF!/#REF!)","v":{"$error":"#REF!"}},{"$f":"IF(#REF!=0,0,#REF!/#REF!)","v":{"$error":"#REF!"}}]
[2,"Проверка сетевой организацией выполнения заявителем технических условий","-","-","-","-",{"$f":"IF(D10=0,0,C10/D10)","v":{"$error":"#VALUE!"}},{"$f":"IF(#REF!=0,0,#REF!/#REF!)","v":{"$error":"#REF!"}},{"$f":"IF(#REF!=0,0,#REF!/#REF!)","v":{"$error":"#REF!"}},{"$f":"IF(#REF!=0,0,#REF!/#REF!)","v":{"$error":"#REF!"}}]
[3,"Итого",{"$f":"C9+C10","v":{"$error":"#VALUE!"}},{"$f":"D9+D10","v":{"$error":"#VALUE!"}},{"$error":"#VALUE!"},null,{"$f":"IF(D11=0,0,C11/D11)","v":{"$error":"#VALUE!"}},{"$f":"IF(#REF!=0,0,#REF!/#REF!)","v":{"$error":"#REF!"}},{"$f":"IF(#REF!=0,0,#REF!/#REF!)","v":{"$error":"#REF!"}},{"$f":"IF(#REF!=0,0,#REF!/#REF!)","v":{"$error":"#REF!"}}]
["2.1","Выдача сетевой организацией уведомления об обеспечении сетевой организацией возможности присоединения к электрическим сетям заявителям, указанным в абзаце шестом пункта 24 Методических указаний по определению размера платы за технологическое присоединение к электрическим сетям",null,null,null,{"$f":"IF(D12=0,0,C12 /D12)","v":0},{"$f":"IF(D12=0,0,C12/D12)","v":0},{"$f":"IF(#REF!=0,0,#REF!/#REF!)","v":{"$error":"#REF!"}},{"$f":"IF(#REF!=0,0,#REF!/#REF!)","v":{"$error":"#REF!"}},{"$f":"IF(#REF!=0,0,#REF!/#REF!)","v":{"$error":"#REF!"}}]
["2.2","Проверка сетевой организацией выполнения технических условий заявителями, указанными в абзаце седьмом пункта 24 Методических указаний по определению размера платы за технологическое присоединение к электрическим сетям",null,null,null,0,{"$f":"IF(D13=0,0,C13/D13)","v":0},{"$f":"IF(#REF!=0,0,#REF!/#REF!)","v":{"$error":"#REF!"}},{"$f":"IF(#REF!=0,0,#REF!/#REF!)","v":{"$error":"#REF!"}},{"$f":"IF(#REF!=0,0,#REF!/#REF!)","v":{"$error":"#REF!"}}]

{"sheet":"Прил. № 2.3 (год-1)","index":5,"n_rows":13,"n_cols":10,"rows_kept":13,"cut":false,"hidden":false,"merged":[[0,0,0,9],[2,0,6,0],[2,1,6,1],[5,6,5,7],[5,8,5,9],[3,6,4,9],[4,5,6,5],[1,0,1,5],[2,2,2,5],[3,2,3,5],[4,2,6,2],[4,3,6,3],[4,4,6,4]]}
["Приложение № 2.3\n"]
[{"$f":"\"Расходы на выполнение мероприятий по технологическому присоединению, предусмотренных пунктами \"&CHAR(34)&\"а\"&CHAR(34)&\" и \"&CHAR(34)&\"в\"&CHAR(34)&\" пункта 16 Методических указаний\"&CHAR(10)&\" за \" &IF(Титульный!C12=\"\",\"--- выберите период на листе Титульный ---\",(Титульный!C12-1)) & \" год\"","v":"Расходы на выполнение мероприятий по технологическому присоединению, предусмотренных пунктами \"а\" и \"в\" пункта 16 Методических указаний\n за 2021 год"}]
["№ п/п","Наименование мероприятий",{"$f":"\"Год формирования расходов (согласно учетной политике сетевой организации) за \" &IF(Титульный!C12=\"\",\"--- выберите период на листе Титульный ---\",(Титульный!C12-1)) & \" год\"","v":"Год формирования расходов (согласно учетной политике сетевой организации) за 2021 год"}]
[null,null,"Информация для расчета стандартизированной тарифной ставки С1",null,null,null,"расходы на одно присоединение (руб. на 1 ТП)"]
[null,null,"расходы согласно Приложению № 3 по каждому мероприятию (тыс. руб.) ","количество технологических присоединений (шт.)","объем максимальной мощности (кВт)","Итого расходы на одно присоединение \n(тыс.руб. на 1 ТП)\n (гр.3/ гр.4)"]
[null,null,null,null,null,null,"до 35 кВ",null,"свыше 35 кВ включительно"]
[null,null,null,null,null,null,"до 8900 кВт","свыше 8900 кВт включительно","до 8900 кВт","свыше 8900 кВт включительно"]
[1,2,3,4,5,6,15,16,17,18]
[1,"Подготовка и выдача сетевой организацией технических условий заявителю",null,null,null,{"$f":"IF(D9=0,0,C9 /D9)","v":0},{"$f":"IF(D9=0,0,C9/D9)","v":0},{"$f":"IF(#REF!=0,0,#REF!/#REF!)","v":{"$error":"#REF!"}},{"$f":"IF(#REF!=0,0,#REF!/#REF!)","v":{"$error":"#REF!"}},{"$f":"IF(#REF!=0,0,#REF!/#REF!)","v":{"$error":"#REF!"}}]
[2,"Проверка сетевой организацией выполнения заявителем технических условий","-","-","-","-",{"$f":"IF(D10=0,0,C10/D10)","v":{"$error":"#VALUE!"}},{"$f":"IF(#REF!=0,0,#REF!/#REF!)","v":{"$error":"#REF!"}},{"$f":"IF(#REF!=0,0,#REF!/#REF!)","v":{"$error":"#REF!"}},{"$f":"IF(#REF!=0,0,#REF!/#REF!)","v":{"$error":"#REF!"}}]
[3,"Итого",{"$f":"C9+C10","v":{"$error":"#VALUE!"}},{"$f":"D9+D10","v":{"$error":"#VALUE!"}},{"$error":"#VALUE!"},null,{"$f":"IF(D11=0,0,C11/D11)","v":{"$error":"#VALUE!"}},{"$f":"IF(#REF!=0,0,#REF!/#REF!)","v":{"$error":"#REF!"}},{"$f":"IF(#REF!=0,0,#REF!/#REF!)","v":{"$error":"#REF!"}},{"$f":"IF(#REF!=0,0,#REF!/#REF!)","v":{"$error":"#REF!"}}]
["2.1","Выдача сетевой организацией уведомления об обеспечении сетевой организацией возможности присоединения к электрическим сетям заявителям, указанным в абзаце шестом пункта 24 Методических указаний по определению размера платы за технологическое присоединение к электрическим сетям",null,null,null,{"$f":"IF(D12=0,0,C12 /D12)","v":0},{"$f":"IF(D12=0,0,C12/D12)","v":0},{"$f":"IF(#REF!=0,0,#REF!/#REF!)","v":{"$error":"#REF!"}},{"$f":"IF(#REF!=0,0,#REF!/#REF!)","v":{"$error":"#REF!"}},{"$f":"IF(#REF!=0,0,#REF!/#REF!)","v":{"$error":"#REF!"}}]
["2.2","Проверка сетевой организацией выполнения технических условий заявителями, указанными в абзаце седьмом пункта 24 Методических указаний по определению размера платы за технологическое присоединение к электрическим сетям",null,null,null,0,{"$f":"IF(D13=0,0,C13/D13)","v":0},{"$f":"IF(#REF!=0,0,#REF!/#REF!)","v":{"$error":"#REF!"}},{"$f":"IF(#REF!=0,0,#REF!/#REF!)","v":{"$error":"#REF!"}},{"$f":"IF(#REF!=0,0,#REF!/#REF!)","v":{"$error":"#REF!"}}]

{"sheet":"Прил. № 3.1 ('а' п.16)","index":6,"n_rows":23,"n_cols":6,"rows_kept":23,"cut":false,"hidden":false,"merged":[[0,0,0,5],[1,0,1,5]]}
["Приложение № 3.1\n"]
[{"$f":"\"Расчет фактических расходов на выполнение мероприятий  по технологическому присоединению, связанных с подготовкой и выдачей сетевой организацией технических условий заявителю, предусмотренных подпунктом \"&CHAR(34)&\"а\"&CHAR(34)&\" пункта 16 Методических указаний за \" &IF(Титульный!C12=\"\",\"--- выберите период на листе Титульный ---\",(Титульный!C12-3) & \"–\" & (Титульный!C12-1) ) & \" годы\"","v":"Расчет фактических расходов на выполнение мероприятий  по технологическому присоединению, связанных с подготовкой и выдачей сетевой организацией технических условий заявителю, предусмотренных подпунктом \"а\" пункта 16 Методических указаний за 2019–2021 годы"}]
["№ п/п","Показатели",{"$f":"CONCATENATE(\"Данные за \" &IF(Титульный!C12=\"\",\"--- выберите период на листе Титульный ---\",(Титульный!C12-1)) & \" год,\", CHAR(10),\" тыс. рублей\")","v":"Данные за 2021 год,\n тыс. рублей"},{"$f":"CONCATENATE(\"Данные за \" &IF(Титульный!C12=\"\",\"--- выберите период на листе Титульный ---\",(Титульный!C12-2)) & \" год,\", CHAR(10),\" тыс. рублей\")","v":"Данные за 2020 год,\n тыс. рублей"},{"$f":"CONCATENATE(\"Данные за \" &IF(Титульный!C12=\"\",\"--- выберите период на листе Титульный ---\",(Титульный!C12-3)) & \" год,\", CHAR(10),\" тыс. рублей\")","v":"Данные за 2019 год,\n тыс. рублей"},"Итого,\nтыс. рублей"]
[1,2,3,4,5,6]
[1,"Расходы по выполнению мероприятий по технологическому присоединению, всего",{"$f":"C6+C7+C8+C9+C10+C19","v":0},{"$f":"D6+D7+D8+D9+D10+D19","v":0},{"$f":"E6+E7+E8+E9+E10+E19","v":32.676000000000002},{"$f":"C5+D5+E5","v":32.676000000000002}]
["1.1","Вспомогательные материалы",null,null,null,{"$f":"C6+D6+E6","v":0}]
["1.2","Энергия на хозяйственные нужды",null,null,null,0]
["1.3","Оплата труда ППП",null,null,22.102,22.102]
["1.4","Отчисления на страховые взносы",null,null,7.0730000000000004,7.0730000000000004]
["1.5","Прочие расходы, всего, в том числе:",{"$f":"SUM(C11:C13)","v":0},{"$f":"SUM(D11:D13)","v":0},{"$f":"SUM(E11:E13)","v":3.5009999999999999},3.5009999999999999]
["1.5.1","работы и услуги производственного характера",null,null,null,0]
["1.5.2","налоги и сборы, уменьшающие налогооблагаемую базу на прибыль организаций, всего",null,null,null,0]
["1.5.3","работы и услуги непроизводственного характера, в том числе:",{"$f":"SUM(C14:C18)","v":0},{"$f":"SUM(D14:D18)","v":0},{"$f":"SUM(E14:E18)","v":3.5009999999999999},3.5009999999999999]
["1.5.3.1","услуги связи",null,null,null,0]
["1.5.3.2","расходы на охрану и пожарную безопасность",null,null,null,0]
["1.5.3.3","расходы на информационное обслуживание, иные услуги, связанные с деятельностью по технологическому присоединению",null,null,null,0]
["1.5.3.4","плата за аренду имущества",null,null,null,0]
["1.5.3.5","другие прочие расходы, связанные с производством и реализацией",null,null,3.5009999999999999,3.5009999999999999]
["1.6","Внереализованные расходы, всего",{"$f":"SUM(C20:C23)","v":0},{"$f":"SUM(D20:D23)","v":0},{"$f":"SUM(E20:E23)","v":0},0]
["1.6.1","расходы на услуги банков",null,null,null,0]
["1.6.2","% за пользование кредитом",null,null,null,0]
["1.6.3","прочие обоснованные расходы",null,null,null,0]
["1.6.4","денежные выплаты социального характера ( по Коллективному договору)",null,null,null,0]

{"sheet":"Прил. № 3.2 ('в' п.16)","index":7,"n_rows":23,"n_cols":6,"rows_kept":23,"cut":false,"hidden":false,"merged":[[0,0,0,5],[1,0,1,5]]}
["Приложение № 3.2\n"]
[{"$f":"\"Расчет фактических расходов на выполнение мероприятий  по технологическому присоединению, связанных с проверкой сетевой организацией выполнения заявителем технических условий, предусмотренных подпунктом \"&CHAR(34)&\"в\"&CHAR(34)&\" пункта 16 Методических указаний за \" &IF(Титульный!C12=\"\",\"--- выберите период на листе Титульный ---\",(Титульный!C12-3) & \"–\" & (Титульный!C12-1) ) & \" годы\"","v":"Расчет фактических расходов на выполнение мероприятий  по технологическому присоединению, связанных с проверкой сетевой организацией выполнения заявителем технических условий, предусмотренных подпунктом \"в\" пункта 16 Методических указаний за 2019–2021 годы"}]
["№ п/п","Показатели",{"$f":"CONCATENATE(\"Данные за \" &IF(Титульный!C12=\"\",\"--- выберите период на листе Титульный ---\",(Титульный!C12-1)) & \" год,\", CHAR(10),\" тыс. рублей\")","v":"Данные за 2021 год,\n тыс. рублей"},{"$f":"CONCATENATE(\"Данные за \" &IF(Титульный!C12=\"\",\"--- выберите период на листе Титульный ---\",(Титульный!C12-2)) & \" год,\", CHAR(10),\" тыс. рублей\")","v":"Данные за 2020 год,\n тыс. рублей"},{"$f":"CONCATENATE(\"Данные за \" &IF(Титульный!C12=\"\",\"--- выберите период на листе Титульный ---\",(Титульный!C12-3)) & \" год,\", CHAR(10),\" тыс. рублей\")","v":"Данные за 2019 год,\n тыс. рублей"},"Итого,\nтыс. рублей"]
[1,2,3,4,5,6]
[1,"Расходы по выполнению мероприятий по технологическому присоединению, всего",{"$f":"C6+C7+C8+C9+C10+C19","v":0},{"$f":"D6+D7+D8+D9+D10+D19","v":0},{"$f":"E6+E7+E8+E9+E10+E19","v":42.564},{"$f":"C5+D5+E5","v":42.564}]
["1.1","Вспомогательные материалы",null,null,null,{"$f":"C6+D6+E6","v":0}]
["1.2","Энергия на хозяйственные нужды",null,null,null,0]
["1.3","Оплата труда ППП",null,null,25.283000000000001,25.283000000000001]
["1.4","Отчисления на страховые взносы",null,null,8.0909999999999993,8.0909999999999993]
["1.5","Прочие расходы, всего, в том числе:",{"$f":"SUM(C11:C13)","v":0},{"$f":"SUM(D11:D13)","v":0},{"$f":"SUM(E11:E13)","v":9.19},9.19]
["1.5.1","работы и услуги производственного характера",null,null,null,0]
["1.5.2","налоги и сборы, уменьшающие налогооблагаемую базу на прибыль организаций, всего",null,null,null,0]
["1.5.3","работы и услуги непроизводственного характера, в том числе:",{"$f":"SUM(C14:C18)","v":0},{"$f":"SUM(D14:D18)","v":0},{"$f":"SUM(E14:E18)","v":9.19},9.19]
["1.5.3.1","услуги связи",null,null,null,0]
["1.5.3.2","расходы на охрану и пожарную безопасность",null,null,null,0]
["1.5.3.3","расходы на информационное обслуживание, иные услуги, связанные с деятельностью по технологическому присоединению",null,null,null,0]
["1.5.3.4","плата за аренду имущества",null,null,null,0]
["1.5.3.5","другие прочие расходы, связанные с производством и реализацией",null,null,9.19,9.19]
["1.6","Внереализованные расходы, всего",{"$f":"SUM(C20:C23)","v":0},{"$f":"SUM(D20:D23)","v":0},{"$f":"SUM(E20:E23)","v":0},0]
["1.6.1","расходы на услуги банков",null,null,null,0]
["1.6.2","% за пользование кредитом",null,null,null,0]
["1.6.3","прочие обоснованные расходы",null,null,null,0]
["1.6.4","денежные выплаты социального характера ( по Коллективному договору)",null,null,null,0]

{"sheet":"Проверка","index":8,"n_rows":1,"n_cols":4,"rows_kept":1,"cut":false,"hidden":false,"merged":[]}
[null,"Сообщение","Адрес","Статус"]

{"sheet":"Справочник","index":9,"n_rows":17,"n_cols":43,"rows_kept":17,"cut":false,"hidden":true,"merged":[[2,32,2,35],[2,1,2,6],[2,9,2,15],[2,37,2,40],[2,17,2,20],[2,22,2,25],[2,27,2,30]]}
[null,"VL1","VL2","VL3","VL4","VL5","VL6",null,null,"KL1","KL2","KL3","KL4","KL5","KL6",null,null,"PS1","PS2","PS3","PS4",null,"TS1","TS2","TS3","TS4",null,"RTP1","RTP2","RTP3","RTP4",null,"SP1","SP2","SP3","SP4",null,"SKU1","SKU2","SKU3","SKU4","SKU5","SKU6"]
[null,"1. ВЛ Воздушные линии",null,null,null,null,null,null,null,"2. КЛ Кабельные линии",null,null,null,null,null,null,null,"3. Пункты секционирования",null,null,null,null,"4. ТП Трансформаторные подстанции",null,null,null,null,"5. РТП Распред. трансформаторные подстанции",null,null,null,null,"6. Подстанции",null,null,null,null,"7. СКУ Средства коммерческого учета"]
[null,"строительство воздушных линий электропередачи ",null,null,null,null,null,null,null,"строительство кабельных линий электропередачи ",null,null,null,null,null,null,null,"строительство пунктов секционирования",null,null,null,null,"строительство комплектных трансформаторных подстанций (КТП) с уровнем напряжения до 35 кВ",null,null,null,null,"строительство распределительных трансформаторных подстанций (РТП) с уровнем напряжения до 35 кВ",null,null,null,null,"строительство центров питания, подстанций уровнем напряжения 35 кВ и выше (ПС)",null,null,null,null,"обеспечение средствами коммерческого учета электрической энергии (мощности)"]
[null,"тип опор: ","тип провода:","материал провода:","сечение провода:","количество цепей:","уровень напряжения:",null,null,"способ прокладки: ","количество жил:","тип изоляции:","сечение провода:","количество кабелей в траншее, канале, туннеле или\n коллекторе, на галерее или эстакаде, труб в скважине:","уровень напряжения:",null,null,"пункт секционирования: ","номинальный ток:","количество ячеек в распределительном или \nпереключательном пункте:","уровень напряжения:",null,"уровень напряжения: ","количество трансформаторов:","трансформаторная мощность:","тип трансформаторной подстанции:",null,"количество трансформаторов:","трансформаторная мощность:","уровень напряжения: ","тип распределительной трансформаторной подстанции:",null,"количество трансформаторов:","трансформаторная мощность:","уровень напряжения: ","тип центра питания, подстанции:",null,"количество фаз:","тип включения:","уровень напряжения: "]
[null,"деревянные","изолированный","медный","до 50 мм2 включительно","одноцепная","0,4 кВ и ниже",null,null,"в траншеях","одножильные","резиновая и пластмассовая ","до 50 мм2 включительно","один","0,4 кВ и ниже",null,null,"реклоузеры","до 100 А включительно","до 5 ячеек включительно","0,4 кВ и ниже",null,"6/0,4 кВ","однотрансформаторные","до 25 кВА включительно","столбовой/мачтовый ",null,"однотрансформаторные","до 25 кВА включительно","6(10)/0,4 кВ","открытого типа",null,"однотрансформаторные","до 6,3 МВА включительно","35/6(10) кВ","открытого типа",null,"однофазный","прямой","0,4 кВ и ниже","0,4 кВ и ниже","0,4 кВ и ниже","1-10 кВ"]
[null,"железобетонные опоры","неизолированный","стальной ","от 50 до 100 мм2 включительно","двухцепная","1-20 кВ",null,null,"в блоках","многожильные","бумажная","от 50 до 100 мм2 включительно","два","1-10 кВ",null,null,"линейные разъединители","от 100 до 250 А включительно","от 5 до 10 ячеек включительно","1-20 кВ",null,"10/0,4 кВ","двухтрансформаторные","от 25 до 100 кВА включительно","шкафной или киосковый",null,"двухтрансформаторные","от 25 до 100 кВА включительно","20/0,4 кВ","закрытого типа",null,"двухтрансформаторные","от 6,3 до 10 МВА включительно","35/0,4 кВ","закрытого типа",null,"трехфазный","полукосвенный","1-10 кВ","1-20 кВ","1-20 кВ","20 кВ"]
[null,"металлические опоры",null,"сталеалюминиевый","от 100 до 200 мм2 включительно",null,"27,5-60 кВ",null,null,"в каналах",null,null,"от 100 до 200 мм2 включительно","три","15-20 кВ",null,null,"выключатели нагрузки, устанавливаемые вне\nтрансформаторных подстанций и распределительных и переключательных пунктов (РП)","от 250 до 500 А включительно","от 10 до 15 ячеек включительно","35 кВ",null,"20/0,4 кВ",null,"от 100 до 250 кВА включительно","блочный",null,null,"от 100 до 250 кВА включительно",null,null,null,null,"от 10 до 16 МВА включительно","110/35 кВ",null,null,null,"косвенный","1-20 кВ",null,"35 кВ","35 кВ"]
[null,"металлические опоры, за исключением многогранных",null,"алюминиевый","от 200 до 500 мм2 включительно",null,"110 кВ и выше",null,null,"в туннелях и коллекторах",null,null,"от 200 до 250 мм2 включительно","четыре","27,5-60 кВ",null,null,"распределительные пункты (РП), за исключением комплектных распределительных устройств наружной установки (КРН, КРУН)","от 500 до 1000 А включительно","свыше 15 ячеек","110 кВ и выше",null,"6/10 (10/6) кВ",null,"от 250 до 400 кВА включительно","встроенный",null,null,"от 250 до 400 кВА включительно",null,null,null,null,"от 16 до 25 МВА включительно","110/6(10) кВ",null,null,null,null,"20 кВ",null,"110 кВ и выше","110 кВ и выше"]
[null,"многогранные металлические опоры",null,null,"от 500 до 800 мм2 включительно",null,null,null,null,"в галереях и эстакадах",null,null,"от 250 до 300 мм2 включительно","более четырех","110 кВ и выше",null,null,"комплектные распределительные устройства наружной установки (КРН, КРУН)","свыше 1000 А",null,null,null,"10/20 (20/10) кВ",null,"от 400 до 630 кВА включительно",null,null,null,"от 400 до 630 кВА включительно",null,null,null,null,"от 25 до 32 МВА включительно","110/35/6(10) кВ",null,null,null,null,"35 кВ"]
[null,null,null,null,"свыше 800 мм2",null,null,null,null,"горизонтальное наклонное бурение",null,null,"от 300 до 400 мм2 включительно",null,null,null,null,"переключательные пункты",null,null,null,null,"6/20 (20/6) кВ",null,"от 630 до 1000 кВА включительно",null,null,null,"от 630 до 1000 кВА включительно",null,null,null,null,"от 32 до 40 МВА включительно",null,null,null,null,null,"110 кВ и выше"]
[null,null,null,null,null,null,null,null,null,"подводная прокладка",null,null,"от 400 до 500 мм2 включительно",null,null,null,null,null,null,null,null,null,null,null,"от 1000 до 1250 кВА включительно",null,null,null,"от 1000 до 1250 кВА включительно",null,null,null,null,"от 40 до 63 МВА включительно"]
[null,null,null,null,null,null,null,null,null,null,null,null,"от 500 до 800 мм2 включительно",null,null,null,null,null,null,null,null,null,null,null,"от 1250 до 1600 кВА включительно",null,null,null,"от 1250 до 1600 кВА включительно",null,null,null,null,"от 63 до 80 МВА включительно"]
[null,null,null,null,null,null,null,null,null,null,null,null,"свыше 800 мм2",null,null,null,null,null,null,null,null,null,null,null,"от 1600 до 2000 кВА включительно",null,null,null,"от 1600 до 2000 кВА включительно",null,null,null,null,"от 80 до 100 МВА включительно"]
[null,null,null,null,null,null,null,null,null,null,null,null,null,null,null,null,null,null,null,null,null,null,null,null,"от 2000 до 2500 кВА включительно",null,null,null,"от 2000 до 2500 кВА включительно",null,null,null,null,"свыше 100 МВА"]
[null,null,null,null,null,null,null,null,null,null,null,null,null,null,null,null,null,null,null,null,null,null,null,null,"от 2500 до 3150 кВА включительно",null,null,null,"от 2500 до 3150 кВА включительно"]
[null,null,null,null,null,null,null,null,null,null,null,null,null,null,null,null,null,null,null,null,null,null,null,null,"от 3150 до 4000 кВА включительно",null,null,null,"свыше 3150 кВА"]
[null,null,null,null,null,null,null,null,null,null,null,null,null,null,null,null,null,null,null,null,null,null,null,null,"свыше 4000 кВА"]